bitfinex-derivatives/quotes_BTCF0:USTF0_20260104
["timestamp","ask_amount","ask_price","bid_price","bid_amount"]
[1767532242057,0.02627455,91241.0,91234.0,0.010965]
[1767532242252,0.0932,91246.0,91234.0,0.010965]
[1767532242456,0.02627421,91245.0,91234.0,0.010965]
[1767532242652,0.02627421,91244.0,91231.0,0.02358998]
[1767532242857,0.02627421,91243.0,91231.0,0.02358998]
[1767532243058,0.0932,91246.0,91231.0,0.02358998]
[1767532243059,0.02627421,91242.0,91231.0,0.02358998]
[1767532243269,0.02627421,91241.0,91231.0,0.02358998]
[1767532243470,0.104164,91246.0,91231.0,0.02358998]
[1767532243669,0.02627376,91245.0,91231.0,0.02358998]
[1767532243873,0.02627376,91244.0,91231.0,0.02358998]
[1767532244071,0.02627376,91243.0,91231.0,0.02358998]
[1767532244262,0.02627376,91242.0,91231.0,0.02358998]
[1767532244461,0.02627376,91241.0,91231.0,0.02358998]
[1767532244657,0.010964,91246.0,91231.0,0.02358998]
[1767532244863,0.02627321,91245.0,91231.0,0.02358998]
[1767532245066,0.02627321,91244.0,91231.0,0.02358998]
[1767532245271,0.02627321,91243.0,91231.0,0.02358998]
[1767532245573,0.02627321,91242.0,91231.0,0.02358998]
[1767532245772,0.02627321,91241.0,91231.0,0.02358998]
[1767532245962,0.104164,91246.0,91231.0,0.02358998]
[1767532246163,0.02627297,91245.0,91231.0,0.02358998]
[1767532246366,0.02627297,91244.0,91231.0,0.02358998]
[1767532246568,0.02627297,91243.0,91231.0,0.02358998]
[1767532246771,0.02627297,91242.0,91231.0,0.02358998]
[1767532246966,0.02627297,91241.0,91231.0,0.02358998]
[1767532247172,0.010964,91244.0,91231.0,0.02358998]
[1767532247470,0.02617341,91243.0,91231.0,0.02358998]
[1767532247769,0.02617341,91242.0,91232.0,0.02358998]
[1767532247961,0.104164,91246.0,91232.0,0.02358998]
[1767532248161,0.0261735,91245.0,91232.0,0.02358998]
[1767532248358,0.0261735,91244.0,91232.0,0.02358998]
[1767532248564,0.0261735,91243.0,91232.0,0.02358998]
[1767532248765,0.0261735,91242.0,91232.0,0.02358998]
[1767532248965,0.104164,91246.0,91232.0,0.02358998]
[1767532249168,0.02617337,91245.0,91232.0,0.02358998]
[1767532249367,0.02617337,91244.0,91232.0,0.02358998]
[1767532249572,0.02617337,91243.0,91232.0,0.02358998]
[1767532249772,0.02617337,91242.0,91232.0,0.02358998]
[1767532249972,0.104164,91246.0,91232.0,0.02358998]
[1767532250173,0.02617333,91245.0,91233.0,0.010965]
[1767532250374,0.02617333,91244.0,91233.0,0.010965]
[1767532250575,0.02617333,91243.0,91233.0,0.010965]
[1767532250773,0.104164,91246.0,91233.0,0.010965]
[1767532250972,0.0261732,91245.0,91233.0,0.010965]
[1767532251175,0.0261732,91244.0,91233.0,0.010965]
[1767532251373,0.104164,91246.0,91233.0,0.010965]
[1767532251667,0.0261731,91245.0,91233.0,0.010965]
[1767532251863,0.0261731,91244.0,91233.0,0.010965]
[1767532252065,0.104164,91246.0,91233.0,0.010965]
[1767532252261,0.02617309,91245.0,91233.0,0.010965]
[1767532252463,0.02617309,91244.0,91233.0,0.010965]
[1767532252666,0.0932,91246.0,91232.0,0.01262498]
[1767532252878,0.02617312,91245.0,91235.0,0.010965]
[1767532253176,0.0932,91246.0,91235.0,0.010965]
[1767532253177,0.02617312,91244.0,91235.0,0.010965]
[1767532253375,0.0932,91246.0,91235.0,0.010965]
[1767532253572,0.02617272,91245.0,91235.0,0.010965]
[1767532253767,0.02617272,91244.0,91235.0,0.010965]
[1767532253975,0.0932,91246.0,91235.0,0.010965]
[1767532254275,0.02617268,91245.0,91235.0,0.010965]
[1767532254474,0.02617268,91244.0,91235.0,0.010965]
[1767532254678,0.0932,91246.0,91235.0,0.010965]
[1767532254972,0.02617281,91245.0,91235.0,0.010965]
[1767532255173,0.02617281,91244.0,91232.0,0.02358998]
[1767532255376,0.0932,91246.0,91232.0,0.02358998]
[1767532255677,0.02617295,91245.0,91232.0,0.02358998]
[1767532255873,0.02617295,91244.0,91232.0,0.02358998]
[1767532256072,0.0932,91246.0,91232.0,0.02358998]
[1767532256278,0.02617196,91245.0,91232.0,0.02358998]
[1767532256469,0.02617196,91244.0,91232.0,0.010965]
[1767532256769,0.0932,91246.0,91232.0,0.010965]
[1767532256968,0.02618472,91245.0,91232.0,0.010965]
[1767532257176,0.02618472,91244.0,91232.0,0.010965]
[1767532257377,0.0932,91246.0,91232.0,0.010965]
[1767532257574,0.03714891,91245.0,91231.0,0.09447629]
[1767532257778,0.02618491,91244.0,91228.0,0.01262498]
[1767532257974,0.0932,91246.0,91228.0,0.01262498]
[1767532258175,0.02618352,91245.0,91228.0,0.01262498]
[1767532258380,0.02618352,91244.0,91228.0,0.01262498]
[1767532258580,0.010965,91240.0,91228.0,0.01262498]
[1767532260382,0.010965,91240.0,91228.0,0.02359098]
[1767532260580,0.010964,91243.0,91228.0,0.02359098]
[1767532264381,0.010964,91243.0,91230.0,0.010966]
[1767532264786,0.104164,91246.0,91233.0,0.10926347]
[1767532265089,0.0260003,91245.0,91234.0,0.01125767]
[1767532265286,0.104164,91246.0,91234.0,0.01125767]
[1767532265590,0.104164,91246.0,91233.0,0.0980058]
[1767532265591,0.02599923,91245.0,91233.0,0.0980058]
[1767532265888,0.104164,91246.0,91233.0,0.0980058]
[1767532266090,0.02599895,91245.0,91233.0,0.0980058]
[1767532266289,0.104164,91246.0,91233.0,0.0980058]
[1767532266498,0.02599858,91245.0,91233.0,0.0980058]
[1767532266698,0.104164,91246.0,91233.0,0.0980058]
[1767532266898,0.02599861,91245.0,91233.0,0.0980058]
[1767532267097,0.010964,91245.0,91233.0,0.0980058]
[1767532267798,0.010964,91245.0,91232.0,0.010965]
[1767532270097,0.0932,91246.0,91232.0,0.010965]
[1767532270302,0.0260004,91245.0,91232.0,0.010965]
[1767532270502,0.0932,91246.0,91232.0,0.010965]
[1767532270795,0.0260004,91245.0,91232.0,0.010965]
[1767532270990,0.0932,91246.0,91234.0,0.010965]
[1767532271186,0.02600042,91245.0,91234.0,0.010965]
[1767532271387,0.0932,91246.0,91234.0,0.010965]
[1767532271607,0.02600036,91245.0,91234.0,0.010965]
[1767532271901,0.0932,91246.0,91235.0,0.010965]
[1767532272099,0.02600017,91245.0,91235.0,0.010965]
[1767532272301,0.0932,91246.0,91235.0,0.010965]
[1767532272601,0.02600019,91245.0,91235.0,0.010965]
[1767532272801,0.0932,91246.0,91235.0,0.010965]
[1767532273004,0.02600019,91245.0,91235.0,0.010965]
[1767532273193,0.0932,91246.0,91235.0,0.010965]
[1767532273393,0.02600011,91245.0,91235.0,0.010965]
[1767532273592,0.0932,91246.0,91236.0,0.010965]
[1767532273805,0.02600002,91245.0,91236.0,0.010965]
[1767532274004,0.0932,91246.0,91236.0,0.010965]
[1767532274202,0.02600003,91245.0,91236.0,0.010965]
[1767532274402,0.0932,91246.0,91236.0,0.010965]
[1767532274603,0.02600001,91245.0,91236.0,0.010965]
[1767532274902,0.0932,91246.0,91236.0,0.010965]
[1767532275102,0.02599897,91245.0,91236.0,0.010965]
[1767532275299,0.0932,91246.0,91236.0,0.010965]
[1767532275502,0.02599896,91245.0,91236.0,0.010965]
[1767532275800,0.0932,91246.0,91236.0,0.010965]
[1767532276101,0.02599845,91245.0,91236.0,0.010965]
[1767532276292,0.0932,91246.0,91236.0,0.010965]
[1767532276493,0.02599837,91245.0,91236.0,0.010965]
[1767532276690,0.0932,91246.0,91236.0,0.010965]
[1767532276891,0.02598384,91245.0,91236.0,0.010965]
[1767532277091,0.0932,91246.0,91236.0,0.010965]
[1767532277290,0.02598376,91245.0,91236.0,0.010965]
[1767532277504,0.0932,91246.0,91236.0,0.010965]
[1767532277804,0.02598381,91245.0,91236.0,0.010965]
[1767532277992,0.0932,91246.0,91236.0,0.010965]
[1767532278198,0.0932,91246.0,91230.0,0.01125767]
[1767532278397,0.0932,91246.0,91233.0,0.01125767]
[1767532278806,0.0932,91246.0,91239.0,0.010965]
[1767532281004,0.0201241,91253.0,91239.0,0.010965]
[1767532281209,0.11918197,91252.0,91239.0,0.010965]
[1767532281505,0.02598197,91251.0,91239.0,0.010965]
[1767532281706,0.02598197,91250.0,91239.0,0.010965]
[1767532281896,0.02598197,91249.0,91239.0,0.010965]
[1767532282100,0.0932,91252.0,91239.0,0.010965]
[1767532282300,0.02598069,91251.0,91239.0,0.010965]
[1767532282500,0.02598069,91250.0,91239.0,0.010965]
[1767532282710,0.02598069,91249.0,91239.0,0.010965]
[1767532282909,0.104163,91252.0,91239.0,0.010965]
[1767532283110,0.02598069,91251.0,91239.0,0.010965]
[1767532283311,0.02598069,91250.0,91236.0,0.010965]
[1767532283510,0.02598069,91249.0,91237.0,0.010965]
[1767532283710,0.104163,91252.0,91237.0,0.010965]
[1767532283905,0.02598024,91251.0,91237.0,0.010965]
[1767532284107,0.02598024,91250.0,91237.0,0.010965]
[1767532284405,0.02598024,91249.0,91237.0,0.010965]
[1767532284606,0.11312729,91252.0,91237.0,0.010965]
[1767532284808,0.00885844,91249.0,91228.0,0.01125767]
[1767532285108,0.10180581,91250.0,91235.0,0.010965]
[1767532285313,0.02597954,91249.0,91235.0,0.010965]
[1767532285510,0.10180581,91250.0,91235.0,0.010965]
[1767532285709,0.02597953,91249.0,91235.0,0.010965]
[1767532285908,0.010964,91249.0,91235.0,0.010965]
[1767532287506,0.01952794,91249.0,91235.0,0.010965]
[1767532288312,0.02594969,91248.0,91235.0,0.010965]
[1767532288613,0.02594969,91247.0,91235.0,0.010965]
[1767532288811,0.11272794,91249.0,91235.0,0.010965]
[1767532289112,0.02588581,91248.0,91233.0,0.010965]
[1767532289309,0.02588581,91247.0,91233.0,0.010965]
[1767532289509,0.10176394,91249.0,91233.0,0.010965]
[1767532289710,0.02588584,91248.0,91233.0,0.010965]
[1767532289909,0.02588584,91247.0,91233.0,0.010965]
[1767532290105,0.10176394,91249.0,91233.0,0.010965]
[1767532290312,0.010964,91247.0,91233.0,0.010965]
[1767532290913,0.02578712,91246.0,91233.0,0.010965]
[1767532291113,0.02578712,91245.0,91233.0,0.010965]
[1767532291311,0.010964,91247.0,91235.0,0.010965]
[1767532291509,0.02578725,91246.0,91235.0,0.010965]
[1767532291709,0.02578725,91245.0,91235.0,0.010965]
[1767532291904,0.01952694,91249.0,91235.0,0.010965]
[1767532292114,0.02578727,91248.0,91235.0,0.010965]
[1767532292314,0.02578727,91247.0,91235.0,0.010965]
[1767532292514,0.02578727,91246.0,91235.0,0.010965]
[1767532292714,0.02578727,91245.0,91235.0,0.010965]
[1767532293015,0.11272694,91249.0,91235.0,0.010965]
[1767532293313,0.02578715,91248.0,91235.0,0.010965]
[1767532293504,0.02578715,91247.0,91235.0,0.010965]
[1767532293702,0.02578715,91246.0,91235.0,0.010965]
[1767532293903,0.02578715,91245.0,91235.0,0.010965]
[1767532294111,0.11272694,91249.0,91235.0,0.010965]
[1767532294309,0.02578699,91248.0,91235.0,0.010965]
[1767532294516,0.02578699,91247.0,91235.0,0.010965]
[1767532294814,0.02578699,91246.0,91235.0,0.010965]
[1767532295016,0.02578699,91245.0,91235.0,0.010965]
[1767532295315,0.11272694,91249.0,91235.0,0.010965]
[1767532295511,0.02570831,91248.0,91235.0,0.010965]
[1767532295711,0.02570831,91247.0,91235.0,0.010965]
[1767532296016,0.02570831,91246.0,91236.0,0.010965]
[1767532296217,0.02570831,91245.0,91236.0,0.010965]
[1767532296415,0.11272694,91249.0,91236.0,0.010965]
[1767532296715,0.02570841,91248.0,91236.0,0.010965]
[1767532296902,0.02570841,91247.0,91236.0,0.010965]
[1767532297102,0.02570841,91246.0,91236.0,0.010965]
[1767532297306,0.11272694,91249.0,91236.0,0.010965]
[1767532297518,0.02570857,91248.0,91236.0,0.010965]
[1767532297712,0.02570857,91247.0,91236.0,0.010965]
[1767532297912,0.02570857,91246.0,91236.0,0.010965]
[1767532298217,0.11272694,91249.0,91236.0,0.010965]
[1767532298411,0.02570881,91248.0,91236.0,0.010965]
[1767532298612,0.02570881,91247.0,91236.0,0.010965]
[1767532298813,0.11272694,91249.0,91236.0,0.010965]
[1767532298814,0.02570881,91246.0,91236.0,0.010965]
[1767532299018,0.11272694,91249.0,91236.0,0.010965]
[1767532299313,0.02570886,91248.0,91236.0,0.010965]
[1767532299513,0.02570886,91247.0,91236.0,0.010965]
[1767532299713,0.02570886,91246.0,91236.0,0.010965]
[1767532299915,0.02570886,91245.0,91236.0,0.010965]
[1767532300108,0.11272694,91249.0,91236.0,0.010965]
[1767532300307,0.02570925,91248.0,91236.0,0.010965]
[1767532300507,0.02570925,91247.0,91236.0,0.010965]
[1767532300807,0.11272694,91249.0,91236.0,0.010965]
[1767532301014,0.02570925,91248.0,91236.0,0.010965]
[1767532301215,0.02570925,91247.0,91234.0,0.010965]
[1767532301410,0.010964,91248.0,91234.0,0.010965]
[1767532301614,0.02570946,91247.0,91234.0,0.010965]
[1767532301813,0.09084281,91250.0,91233.0,0.00979914]
[1767532302014,0.11890948,91249.0,91233.0,0.00979914]
[1767532302214,0.02570948,91248.0,91233.0,0.00979914]
[1767532303116,0.02570948,91248.0,91236.0,0.010965]
[1767532303419,0.02570948,91248.0,91237.0,0.010965]
[1767532314126,0.104163,91251.0,91237.0,0.010965]
[1767532314328,0.02560997,91250.0,91237.0,0.010965]
[1767532314522,0.02560997,91249.0,91237.0,0.010965]
[1767532314822,0.02560997,91248.0,91237.0,0.010965]
[1767532315135,0.104163,91251.0,91237.0,0.010965]
[1767532315325,0.00619837,91249.0,91237.0,0.010965]
[1767532315526,0.02560989,91248.0,91237.0,0.010965]
[1767532315728,0.02560989,91247.0,91237.0,0.010965]
[1767532315927,0.00619837,91249.0,91237.0,0.010965]
[1767532316127,0.02560983,91248.0,91234.0,0.010965]
[1767532316325,0.02560983,91247.0,91234.0,0.010965]
[1767532316528,0.00619837,91249.0,91234.0,0.010965]
[1767532316720,0.02555792,91248.0,91234.0,0.010965]
[1767532316921,0.02555792,91247.0,91234.0,0.010965]
[1767532317121,0.01716237,91249.0,91235.0,0.010965]
[1767532317418,0.02555787,91248.0,91235.0,0.010965]
[1767532317621,0.02555787,91247.0,91235.0,0.010965]
[1767532317926,0.01716237,91249.0,91235.0,0.010965]
[1767532318126,0.02555784,91248.0,91235.0,0.010965]
[1767532318326,0.02555784,91247.0,91235.0,0.010965]
[1767532318628,0.01716237,91249.0,91235.0,0.010965]
[1767532318829,0.02555761,91248.0,91235.0,0.010965]
[1767532319030,0.02555761,91247.0,91235.0,0.010965]
[1767532319230,0.01716237,91249.0,91235.0,0.010965]
[1767532319528,0.02555771,91248.0,91235.0,0.010965]
[1767532319725,0.02555771,91247.0,91235.0,0.010965]
[1767532319925,0.00619837,91249.0,91235.0,0.010965]
[1767532320225,0.03175674,91248.0,91235.0,0.010965]
[1767532320425,0.02555773,91247.0,91235.0,0.010965]
[1767532320626,0.00619901,91248.0,91235.0,0.010965]
[1767532320826,0.02555768,91247.0,91235.0,0.010965]
[1767532321026,0.00619901,91248.0,91235.0,0.010965]
[1767532321227,0.02555768,91247.0,91235.0,0.010965]
[1767532321427,0.00619901,91248.0,91235.0,0.010965]
[1767532321630,0.02555757,91247.0,91235.0,0.010965]
[1767532321828,0.00619901,91248.0,91235.0,0.010965]
[1767532322034,0.02555702,91247.0,91235.0,0.010965]
[1767532322238,0.00619901,91248.0,91235.0,0.010965]
[1767532322438,0.02555658,91247.0,91235.0,0.010965]
[1767532322652,0.00619901,91248.0,91236.0,0.010965]
[1767532322839,0.02555644,91247.0,91236.0,0.010965]
[1767532323033,0.10474805,91250.0,91236.0,0.010965]
[1767532323335,0.02552996,91249.0,91235.0,0.00953797]
[1767532323533,0.02552996,91248.0,91235.0,0.00953797]
[1767532323733,0.0932,91251.0,91235.0,0.00953797]
[1767532323734,0.02552996,91247.0,91235.0,0.00953797]
[1767532323936,0.010964,91249.0,91234.0,0.10125579]
[1767532324137,0.0255299,91248.0,91236.0,0.010965]
[1767532324335,0.0255299,91247.0,91236.0,0.010965]
[1767532324524,0.010964,91249.0,91236.0,0.010965]
[1767532324729,0.02552988,91248.0,91236.0,0.010965]
[1767532325029,0.010964,91249.0,91236.0,0.010965]
[1767532325030,0.02552988,91247.0,91236.0,0.010965]
[1767532325329,0.010964,91249.0,91236.0,0.010965]
[1767532325529,0.02545114,91248.0,91236.0,0.010965]
[1767532325730,0.02545114,91247.0,91236.0,0.010965]
[1767532325931,0.010964,91249.0,91236.0,0.010965]
[1767532326131,0.02545109,91248.0,91236.0,0.010965]
[1767532326333,0.02545109,91247.0,91236.0,0.010965]
[1767532326529,0.010964,91249.0,91236.0,0.010965]
[1767532326728,0.0254511,91248.0,91236.0,0.010965]
[1767532326935,0.0254511,91247.0,91236.0,0.010965]
[1767532327135,0.010964,91249.0,91236.0,0.010965]
[1767532327336,0.02545105,91248.0,91236.0,0.010965]
[1767532327535,0.02545105,91247.0,91236.0,0.010965]
[1767532327731,0.010964,91249.0,91236.0,0.010965]
[1767532327932,0.02545105,91248.0,91236.0,0.010965]
[1767532328126,0.02545105,91247.0,91236.0,0.010965]
[1767532328332,0.010964,91249.0,91236.0,0.010965]
[1767532328537,0.02545105,91248.0,91237.0,0.010965]
[1767532328736,0.02545105,91247.0,91234.0,0.09029079]
[1767532329041,0.104163,91253.0,91239.0,0.010965]
[1767532329244,0.02545106,91252.0,91239.0,0.00953797]
[1767532329438,0.02545106,91251.0,91242.0,0.010964]
[1767532329633,0.10635358,91259.0,91243.0,0.00953797]
[1767532329838,0.10635358,91259.0,91244.0,0.00953797]
[1767532330238,0.10635358,91259.0,91243.0,0.09029079]
[1767532331245,0.10635358,91259.0,91245.0,0.010964]
[1767532332543,0.10635358,91259.0,91246.0,0.010964]
[1767532333244,0.00219158,91259.0,91248.0,0.010964]
[1767532335137,0.01315358,91259.0,91245.0,0.010964]
[1767532339148,0.010962,91258.0,91245.0,0.010964]
[1767532341651,0.02524263,91257.0,91245.0,0.010964]
[1767532341948,0.02524263,91256.0,91245.0,0.010964]
[1767532342145,0.02524263,91255.0,91245.0,0.010964]
[1767532342350,0.02524263,91254.0,91245.0,0.010964]
[1767532342547,0.02524263,91253.0,91245.0,0.010964]
[1767532342747,0.010962,91258.0,91245.0,0.010964]
[1767532343052,0.02523828,91257.0,91245.0,0.010964]
[1767532343348,0.02523828,91256.0,91245.0,0.010964]
[1767532343549,0.02523828,91255.0,91245.0,0.010964]
[1767532343752,0.010962,91258.0,91245.0,0.010964]
[1767532344050,0.02523855,91257.0,91245.0,0.010964]
[1767532344249,0.02523855,91256.0,91245.0,0.010964]
[1767532344441,0.02523855,91255.0,91246.0,0.010964]
[1767532344641,0.02523855,91255.0,91243.0,0.09029079]
[1767532344642,0.00219158,91259.0,91243.0,0.09029079]
[1767532344851,0.02523783,91258.0,91243.0,0.09029079]
[1767532345051,0.00219158,91259.0,91243.0,0.09029079]
[1767532345052,0.02523783,91257.0,91243.0,0.09029079]
[1767532345246,0.02523783,91256.0,91243.0,0.09029079]
[1767532345447,0.02523783,91255.0,91243.0,0.09029079]
[1767532345649,0.00219158,91259.0,91247.0,0.010964]
[1767532345848,0.02523723,91258.0,91247.0,0.010964]
[1767532346048,0.02523723,91257.0,91247.0,0.010964]
[1767532346347,0.02523723,91256.0,91247.0,0.010964]
[1767532346651,0.02523723,91255.0,91247.0,0.010964]
[1767532346851,0.00219158,91259.0,91248.0,0.010963]
[1767532347047,0.02508832,91258.0,91248.0,0.010963]
[1767532347247,0.02508832,91257.0,91248.0,0.010963]
[1767532347552,0.02508832,91256.0,91248.0,0.010963]
[1767532347751,0.02508832,91255.0,91248.0,0.010963]
[1767532347952,0.00219158,91259.0,91248.0,0.010963]
[1767532348253,0.02508825,91258.0,91249.0,0.010963]
[1767532348453,0.02508825,91257.0,91250.0,0.00953797]
[1767532348643,0.02508825,91256.0,91250.0,0.00953797]
[1767532348838,0.00219158,91259.0,91250.0,0.00953797]
[1767532349138,0.025088,91258.0,91250.0,0.00953797]
[1767532349341,0.015088,91257.0,91251.0,0.00953797]
[1767532349545,0.00219158,91259.0,91250.0,0.09029079]
[1767532350157,0.00219158,91259.0,91246.0,0.00953797]
[1767532350349,0.01315358,91259.0,91246.0,0.00953797]
[1767532351356,0.00965924,91249.0,91235.0,0.0932]
[1767532351655,0.010964,91245.0,91235.0,0.0932]
[1767532351851,0.010964,91247.0,91235.0,0.0932]
[1767532352050,0.010964,91246.0,91235.0,0.0932]
[1767532353957,0.00965924,91249.0,91235.0,0.104165]
[1767532354858,0.09951798,91250.0,91235.0,0.104165]
[1767532355158,0.010964,91248.0,91235.0,0.104165]
[1767532357962,0.010964,91248.0,91236.0,0.010965]
[1767532360957,0.010963,91250.0,91236.0,0.010965]
[1767532361965,0.010964,91249.0,91236.0,0.010965]
[1767532362156,0.00924886,91252.0,91236.0,0.010965]
[1767532362860,0.00924886,91252.0,91235.0,0.0932]
[1767532363066,0.00924886,91251.0,91235.0,0.0932]
[1767532363268,0.010964,91248.0,91236.0,0.010965]
[1767532367071,0.010963,91250.0,91236.0,0.010965]
[1767532367868,0.010963,91250.0,91238.0,0.010965]
[1767532368168,0.010963,91250.0,91236.0,0.010965]
[1767532369370,0.09420945,91252.0,91235.0,0.0932]
[1767532369670,0.09420945,91252.0,91235.0,0.104165]
[1767532370271,0.010964,91248.0,91235.0,0.104165]
[1767532370468,0.10345831,91252.0,91235.0,0.0932]
[1767532370970,0.010964,91247.0,91235.0,0.104165]
[1767532373369,0.010963,91249.0,91236.0,0.010965]
[1767532374672,0.010963,91249.0,91237.0,0.010965]
[1767532377773,0.010963,91251.0,91238.0,0.010965]
[1767532380479,0.010963,91253.0,91236.0,0.10192759]
[1767532380672,0.010963,91252.0,91236.0,0.10192759]
[1767532380976,0.010963,91252.0,91240.0,0.010964]
[1767532382273,0.00219158,91259.0,91242.0,0.00944124]
[1767532382579,0.11765536,91258.0,91243.0,0.10192759]
[1767532382789,0.02445536,91257.0,91243.0,0.10192759]
[1767532383191,0.02445536,91257.0,91245.0,0.010964]
[1767532383390,0.00219158,91259.0,91246.0,0.010964]
[1767532383685,0.02445165,91258.0,91246.0,0.02040524]
[1767532383994,0.02445165,91257.0,91246.0,0.010964]
[1767532384182,0.00219158,91259.0,91246.0,0.010964]
[1767532384482,0.02444824,91258.0,91246.0,0.010964]
[1767532384681,0.00219158,91259.0,91246.0,0.010964]
[1767532384882,0.02444822,91258.0,91243.0,0.10192759]
[1767532385077,0.00219158,91259.0,91243.0,0.10192759]
[1767532385281,0.02434658,91258.0,91243.0,0.10192759]
[1767532385482,0.00219158,91259.0,91243.0,0.10192759]
[1767532385681,0.02434634,91258.0,91243.0,0.10192759]
[1767532385889,0.00219158,91259.0,91247.0,0.010964]
[1767532386086,0.02434633,91258.0,91247.0,0.010964]
[1767532386286,0.00219158,91259.0,91247.0,0.010964]
[1767532386488,0.02434438,91258.0,91247.0,0.010964]
[1767532386692,0.00219158,91259.0,91247.0,0.010964]
[1767532386991,0.02434445,91258.0,91247.0,0.010964]
[1767532387191,0.00219158,91259.0,91247.0,0.010964]
[1767532387490,0.02434289,91258.0,91247.0,0.010964]
[1767532387689,0.00219158,91259.0,91247.0,0.010964]
[1767532387892,0.02434284,91258.0,91247.0,0.010964]
[1767532388088,0.00219158,91259.0,91248.0,0.010963]
[1767532389595,0.00219158,91259.0,91249.0,0.02040424]
[1767532389994,0.00219158,91259.0,91249.0,0.010963]
[1767532390296,0.00219158,91259.0,91245.0,0.02040524]
[1767532390486,0.010962,91258.0,91245.0,0.02040524]
[1767532390683,0.010963,91257.0,91245.0,0.00944124]
[1767532390882,0.00219158,91259.0,91245.0,0.00944124]
[1767532390883,0.010963,91256.0,91245.0,0.00944124]
[1767532391383,0.010963,91255.0,91243.0,0.09248635]
[1767532391888,0.010962,91258.0,91243.0,0.10345035]
[1767532392088,0.010962,91258.0,91245.0,0.010964]
[1767532392798,0.010963,91257.0,91245.0,0.010964]
[1767532395087,0.010963,91256.0,91243.0,0.11289159]
[1767532396201,0.010963,91256.0,91245.0,0.010964]
[1767532396400,0.00995978,91258.0,91239.0,0.00944124]
[1767532396594,0.00995978,91258.0,91237.0,0.09248635]
[1767532396896,0.00995978,91258.0,91241.0,0.010964]
[1767532397695,0.010963,91255.0,91243.0,0.010964]
[1767532401507,0.010962,91258.0,91244.0,0.010964]
[1767532402408,0.010963,91257.0,91244.0,0.010964]
[1767532403109,0.010963,91257.0,91246.0,0.010964]
[1767532407811,0.010963,91256.0,91244.0,0.010964]
[1767532409515,0.010963,91255.0,91244.0,0.010964]
[1767532412711,0.00219158,91259.0,91239.0,0.09248635]
[1767532412712,0.010963,91252.0,91241.0,0.010964]
[1767532412914,0.010963,91252.0,91239.0,0.10345135]
[1767532413210,0.010963,91252.0,91239.0,0.09248635]
[1767532413514,0.010963,91251.0,91239.0,0.10345135]
[1767532413815,0.010964,91247.0,91235.0,0.0932]
[1767532414012,0.010964,91247.0,91236.0,0.010965]
[1767532414212,0.010963,91250.0,91236.0,0.010965]
[1767532416217,0.010963,91250.0,91237.0,0.010965]
[1767532416424,0.02044832,91253.0,91235.0,0.0932]
[1767532416726,0.02044832,91253.0,91240.0,0.010964]
[1767532416908,0.010963,91253.0,91240.0,0.010964]
[1767532417616,0.010963,91251.0,91237.0,0.010965]
[1767532418717,0.010963,91251.0,91239.0,0.010965]
[1767532420726,0.010963,91249.0,91236.0,0.010965]
[1767532420915,0.010963,91249.0,91238.0,0.010965]
[1767532421116,0.010963,91249.0,91236.0,0.010965]
[1767532423929,0.010963,91249.0,91237.0,0.010965]
[1767532424724,0.010963,91251.0,91238.0,0.010965]
[1767532424924,0.010963,91250.0,91238.0,0.010965]
[1767532433030,0.010964,91249.0,91236.0,0.010965]
[1767532433732,0.010963,91252.0,91235.0,0.0932]
[1767532433919,0.010963,91251.0,91238.0,0.010965]
[1767532435834,0.09940219,91254.0,91235.0,0.0932]
[1767532435835,0.010963,91250.0,91236.0,0.010965]
[1767532438430,0.010964,91249.0,91236.0,0.010965]
[1767532440127,0.010964,91249.0,91238.0,0.010965]
[1767532440727,0.010963,91251.0,91238.0,0.010965]
[1767532443042,0.010963,91250.0,91238.0,0.010965]
[1767532443344,0.010964,91249.0,91235.0,0.20847857]
[1767532443637,0.010964,91249.0,91236.0,0.010965]
[1767532445738,0.010964,91248.0,91236.0,0.010965]
[1767532445939,0.010964,91247.0,91235.0,0.19751357]
[1767532447741,0.010964,91247.0,91235.0,0.20847857]
[1767532448040,0.010963,91249.0,91236.0,0.010965]
[1767532448236,0.010963,91249.0,91235.0,0.19751357]
[1767532448237,0.00949623,91253.0,91235.0,0.18847377]
[1767532448443,0.00949623,91251.0,91235.0,0.0932]
[1767532448841,0.010964,91247.0,91235.0,0.0932]
[1767532449443,0.010964,91247.0,91236.0,0.010965]
[1767532450838,0.010963,91251.0,91235.0,0.0932]
[1767532451044,0.10333922,91252.0,91235.0,0.0932]
[1767532451439,0.10333922,91252.0,91236.0,0.010965]
[1767532451746,0.010964,91248.0,91235.0,0.0932]
[1767532452847,0.010964,91247.0,91235.0,0.0932]
[1767532453644,0.010964,91246.0,91235.0,0.0932]
[1767532454047,0.010964,91247.0,91235.0,0.0932]
[1767532454249,0.010964,91241.0,91235.0,0.0932]
[1767532454949,0.010965,91240.0,91235.0,0.0932]
[1767532455143,0.00949623,91244.0,91226.0,0.09527377]
[1767532455344,0.00949623,91240.0,91221.0,0.0932]
[1767532455534,0.010965,91233.0,91221.0,0.0932]
[1767532456249,0.00966067,91240.0,91221.0,0.0932]
[1767532456441,0.00949623,91235.0,91215.0,0.0200068]
[1767532456641,0.00949623,91235.0,91217.0,0.010967]
[1767532456842,0.00949623,91235.0,91217.0,0.0200068]
[1767532457043,0.010966,91230.0,91217.0,0.11528057]
[1767532457444,0.010966,91230.0,91218.0,0.0090398]
[1767532457644,0.010965,91233.0,91218.0,0.0090398]
[1767532459555,0.010965,91233.0,91218.0,0.10431357]
[1767532460355,0.010966,91231.0,91218.0,0.10431357]
[1767532460749,0.010966,91231.0,91218.0,0.19751357]
[1767532461555,0.010966,91231.0,91219.0,0.10431357]
[1767532461854,0.010965,91234.0,91220.0,0.10431357]
[1767532462162,0.010965,91234.0,91221.0,0.10431357]
[1767532464058,0.010965,91234.0,91221.0,0.11528057]
[1767532464758,0.010965,91232.0,91221.0,0.10431357]
[1767532465854,0.010965,91235.0,91221.0,0.10431357]
[1767532466857,0.010965,91234.0,91221.0,0.10431357]
[1767532468053,0.010965,91234.0,91222.0,0.10431357]
[1767532469359,0.010965,91234.0,91222.0,0.11528057]
[1767532469567,0.00016444,91240.0,91223.0,0.0090398]
[1767532469768,0.00016444,91240.0,91225.0,0.10431357]
[1767532469966,0.00016444,91240.0,91228.0,0.010966]